{"text_format":"1","workbook":"xlsx","n_sheets":8,"sheets":["Contenido","Metodos M&F SUMA","PROMEDIO, MAX, MIN, SI ","Ref.Rel & Abs Contar.SI","Porcentajes","Rangos","Grafos","Macros"],"not_rendered":{"charts":6,"images":3,"macros":1,"external_links":2,"defined_names":15,"comments":7,"pivot_tables":0},"unopened":[],"bounds":{"document_bytes":16777216,"sheet_cells":100000,"rows_first":2000,"rows_last":500,"rows_between":2000,"halvings":0,"cell_chars":16384,"cell_head_chars":4096},"cells_cut":0,"cells_raw":0,"read":"whole","date_system":"1900"}

{"sheet":"Contenido","index":0,"n_rows":39,"n_cols":16,"rows_kept":39,"cut":false,"hidden":false,"merged":[[1,9,1,15]]}
[]
["INICIO EXCEL",null,null,null,null,null,null,null,null,"Tabla de Secuencias"]
["Columnas, Filas, Celdas (Concepto)",null,null,null,null,null,null,null,null,"Marco Polo",1,5,"Lunes","febrero","ZS14018798","Capitulo 1"]
["Columnas y Filas (Ancho & Alto )",null,null,null,null,null,null,null,null,"Marco Polo",1,10,"Martes","marzo","ZS14018803","Capitulo 2"]
["Columnas y Filas (Insertar & Borrar)",null,null,null,null,null,null,null,null,"Marco Polo",1,15,"Miércoles","abril","ZS14018808","Capitulo 3"]
["Modo de Vistas (Normal, Diseño de Página)",null,null,null,null,null,null,null,null,"Marco Polo",1,20,"Jueves","mayo","ZS14018813","Capitulo 4"]
["Celdas (Combinar)",null,null,null,null,null,null,null,null,"Marco Polo",1,25,"Viernes","junio","ZS14018818","Capitulo 5"]
["Libro, Nombre de Hojas, Color, add & del",null,null,null,null,null,null,null,null,"Marco Polo",1,30,"Sábado","julio","ZS14018823","Capitulo 6"]
["Encabezados & Pie de Página",null,null,null,null,null,null,null,null,"Marco Polo",1,35,"Domingo","agosto","ZS14018828","Capitulo 7"]
["TIPOS",null,null,null,null,null,null,null,null,"Marco Polo",1,40,"Lunes","septiembre","ZS14018833","Capitulo 8"]
["Tipos de Punteros (Seleccionar, Mover, Palanca de llenado)",null,null,null,null,null,null,null,null,"Marco Polo",1,45,"Martes","octubre","ZS14018838","Capitulo 9"]
["Secuencias",null,null,null,null,null,null,null,null,"Marco Polo",1,50,"Miércoles","noviembre","ZS14018843","Capitulo 10"]
["Tipos de Operadores Aritméticos (+, -, *, /, ^)",null,null,null,null,null,null,null,null,"Marco Polo",1,55,"Jueves","diciembre","ZS14018848","Capitulo 11"]
["Tipos de Operadores Comparativos (>, <, >=, <=, <>)",null,null,null,null,null,null,null,null,"Marco Polo",1,60,"Viernes","enero","ZS14018853","Capitulo 12"]
["Formulas & Funciones",null,null,null,null,null,null,null,null,"Marco Polo",1,65,"Sábado","febrero","ZS14018858","Capitulo 13"]
["signo de igual (=) y rangos (:)",null,null,null,null,null,null,null,null,"Marco Polo",1,70,"Domingo","marzo","ZS14018863","Capitulo 14"]
["Metodo Manual",null,null,null,null,null,null,null,null,"Marco Polo",1,75,"Lunes","abril","ZS14018868","Capitulo 15"]
["Metodo Funcional",null,null,null,null,null,null,null,null,"Marco Polo",1,80,"Martes","mayo","ZS14018873","Capitulo 16"]
["Autosuma",null,null,null,null,null,null,null,null,"Marco Polo",1,85,"Miércoles","junio","ZS14018878","Capitulo 17"]
["FORMATOS",null,null,null,null,null,null,null,null,"Marco Polo",1,90,"Jueves","julio","ZS14018883","Capitulo 18"]
["Formato Condicional",null,null,null,null,null,null,null,null,"Marco Polo",1,95,"Viernes","agosto","ZS14018888","Capitulo 19"]
["Referencias Absolutas & Referencias Relativas",null,null,null,null,null,null,null,null,"Marco Polo",1,100,"Sábado","septiembre","ZS14018893","Capitulo 20"]
["Regla de 3",null,null,null,null,null,null,null,null,"Marco Polo",1,105,"Domingo","octubre","ZS14018898","Capitulo 21"]
["Inmovilizar Paneles"]
["Estilos  de Moneda"]
["FUNCIONES"]
["SUMA"]
["PROMEDIO"]
["MAX"]
["MIN"]
["SI"]
["CONTAR.SI"]
["Ordenar"]
["Filtrar"]
["GRAFOS"]
["Tipos de Graficos"]
["Partes de un grafico"]
["MACROS"]
["Crear macros"]

{"sheet":"Metodos M&F SUMA","index":1,"n_rows":31,"n_cols":6,"rows_kept":31,"cut":false,"hidden":false,"merged":[[0,0,0,5]]}
["EMPRESA S.A DE C.V."]
["MATRICULA","ALUMNO","ESPAÑOL","MATEMATICAS","CONTABILIDAD","SUMA TOTAL DE CALIFICACIONES"]
["ZS14018803","VILLEGAS ROTONDA",10,8,5,{"$f":"C3+D3+E3","v":23}]
["ZS14018810","DULCE",10,7,5,{"$f":"C4+D4+E4","v":22}]
["ZS14018817","BLANCA ELI",3,4,6,{"$f":"C5+D5+E5","v":13}]
["ZS14018824","NORA",6,3,7,{"$f":"SUM(C6:E6)","v":16}]
["ZS14018831","SADAI",8,8,10,{"$f":"SUM(C7:E7)","v":26}]
["ZS14018838","MANZO",5,9,5,19]
["ZS14018845","SELENE",7,7,6,20]
["ZS14018852","ABRAHAM",3,10,3,16]
["ZS14018859","LUPE",4,7,7,18]
["ZS14018866","GUSTAVO",5,6,8,19]
[null,"TOTAL",{"$f":"SUM(C3:C12)","v":61},{"$f":"D3+D4+D5+D6+D7+D8+D9+D10+D11+D12","v":69},{"$f":"SUM(E3:E12)","v":62}]
[]
[]
[]
[]
[]
[]
[]
[]
[]
[]
[]
[]
[]
[]
[]
[]
[null,"AUTOFORMATO"]
[null,"ALUMNO"]

{"sheet":"PROMEDIO, MAX, MIN, SI ","index":2,"n_rows":41,"n_cols":16,"rows_kept":41,"cut":false,"hidden":false,"merged":[]}
["Valores",null,"Acciones"]
[3,null,{"$f":"IF(A2=1,\"A\",IF(A2=2,\"B\",IF(A2=3,\"C\")))","v":"C"}]
[2,null,{"$f":"IF(A3=1,\"A\",IF(A3=2,\"B\",IF(A3=3,\"C\")))","v":"B"}]
[1,null,{"$f":"IF(A4=1,\"A\",IF(A4=2,\"B\",IF(A4=3,\"C\")))","v":"A"}]
[3,null,{"$f":"IF(A5=1,\"A\",IF(A5=2,\"B\",IF(A5=3,\"C\")))","v":"C"}]
[1,null,{"$f":"IF(A6=1,\"A\",IF(A6=2,\"B\",IF(A6=3,\"C\")))","v":"A"}]
[]
[]
[]
[]
[]
[]
[]
[]
[]
[]
["Matricula","No.","Alumno","Español","Matematicas","Biologia","Civismo","Quimica","Promedio","Calif Alta","Calif Baja","Total de Beca","Status"]
["BM09020122",23,"VILLEGAS-SILVA NAYELY\n",10,9,8.5,10,7,{"$f":"AVERAGE(D18:H18)","v":8.9},{"$f":"MAX(D18:H18)","v":10},{"$f":"MIN(D18:H18)","v":7},{"$f":"IF(I18>=8.1,\"$5000\",\"$0\")","v":"$5000"},{"$f":"IF(L18>=\"$5000\",\"Becado\",\"Sin beca\")","v":"Becado"}]
["BM09020121",22,"VILLEGAS-ROTONDA ANALY\n",9,10,7,10,7,8.6,10,7,"$5000","Becado"]
["BM09020120",21,"VELIZ-CASTAÑEDA MIRNA AZUCENA\n",7,8.5,6,7,5,6.7,8.5,5,"$0","Sin beca"]
["BM09020119",20,"VAZQUEZ-DIAZ MARIA DE LA LUZ\n",10,7,8,10,10,9,10,7,"$5000","Becado",null,null," "]
["BM09020118",19,"ULLOA-TORALBA JORGE ARTURO\n",5,6,9,8,10,7.6,10,5,"$0","Sin beca"]
["BM09020117",18,"TECZON-ANELL ROSARIO\n",2,5,6,7,7,5.4,7,2,"$0","Sin beca"]
["BM09020116",17,"SOLIS-CARVALLO ANDRES IVAN\n",10,10,6,7,10,8.6,10,6,"$5000","Becado"]
["BM09020115",16,"SERVIN-GARCIA FRIDA CITLALLI\n",9,9,9,7,8,8.4,9,7,"$5000","Becado"]
["BM09020114",15,"SANCHEZ-COVARRUBIAS IVAN ANTONIO\n",7,8,5,6,10,7.2,10,5,"$0","Sin beca"]
["BM09020113",14,"RUEDA-CHAVEZ SANDRA LARISSA\n",10,10,5,8,10,8.6,10,5,"$5000","Becado"]
["BM09020112",13,"ROJAS-ACOSTA NORA ALEJANDRA\n",5,7,3,9,8.5,6.5,9,3,"$0","Sin beca"]
["BM09020111",12,"REYES-ROMERO LILIANA JAZMIN\n",10,7,2,6,7,6.4,10,2,"$0","Sin beca"]
["BM09020110",11,"RAYA-PAPAYANOPULOS ALEJANDRA VIANE Y\n",8.5,7,10,9,6,8.1,10,6,"$5000","Becado"]
["BM09020109",10,"RAMIREZ-MAR IVON\n",7,7,9,5,7,7,9,5,"$0","Sin beca"]
["BM09020108",9,"PRIETO-BRITO LESLIE ANAID\n",6,4,7,5,6,5.6,7,4,"$0","Sin beca"]
["BM09020107",8,"PEREZ-CANO LUZ JACQUELINE\n",8,8,10,3,8,7.4,10,3,"$0","Sin beca"]
["BM09020106",7,"PALACIOS-CISNEROS FERNANDA YERALDE\n",9,9,5,7.5,9,7.9,9,5,"$0","Sin beca"]
["BM09020123",24,"MANZO-MARTINEZ GILBERTO AGUSTI N\n",2,9,10,5,6,6.4,10,2,"$0","Sin beca"]
["BM09020105",6,"FERNANDEZ-FERNANDEZ OYUKI SITLALY\n",5,10,5,6,2,5.6,10,2,"$0","Sin beca"]
["BM09020104",5,"DOMINGUEZ-BAUTISTA JORGE ABRAHAM\n",10,8.5,10,9,10,9.5,10,8.5,"$5000","Becado"]
["BM09020103",4,"CORPUS-GARCIA MARIELA\n",9,7,10,5,9,8,10,5,"$0","Sin beca"]
["BM09020102",3,"CARRASCO-RAMOS ALBERTO\n",8,6,7,5,7,6.6,8,5,"$0","Sin beca"]
["BM09020101",2,"CARDEÑA-TORAL JESSICA JOSELYN\n",10,8,10,3,10,{"$f":"SUM(D40:H40)/5","v":8.1999999999999993},10,3,"$5000","Becado"]
["BM09020100",1,"CARACAS-MARTINEZ GUADALUPE\n",7,9,8,7.5,5,{"$f":"(D41+E41+F41+H41+G41)/5","v":7.3},9,5,"$0","Sin beca"]

{"sheet":"Ref.Rel & Abs Contar.SI","index":3,"n_rows":74,"n_cols":11,"rows_kept":74,"cut":false,"hidden":false,"merged":[]}
[null,"NOMBRE","GENERO","FORMATO","PRECIO FABRICA","PRECIO AL PUBLICO","DIF. PRECIO PUB - PRECIO FAB","PRECIO PUB * IVA",null,"IVA=",0.16]
[1,"GLOBAL PAUL VAN DYLC","DANCE","DVD",22,25,{"$f":"F2-E2","v":3},{"$f":"F2*K$1","v":4}]
[2,"RICARDO ARJONA","POP","DVD",20,30,{"$f":"F3-E3","v":10},{"$f":"F3*K$1","v":4.8}]
[3,"ALEJANDRO SANZ","POP","DVD",80,80,0,12.8]
[4,"RICKY MARTIN","POP","DVD",43,45,2,7.2]
[5,"SHAKIRA","POP","DVD",20,40,20,6.4]
[6,"MANA","MTV","DVD",20,30,10,4.8]
[7,"GRANDES ROCKEROS","ROCK EN ESPAÑOL","DVD",80,80,0,12.8]
[8,"HEROES DEL SILENCIO","ROCK EN ESPAÑOL","DVD",20,20,0,3.2]
[9,"MUSIC CLASICAS EN INGLES","INGLES","mp3",20,20,0,3.2]
[10,"DE CAIFANES A JAGUARES","ROCK EN ESPAÑOL","DVD",80,80,0,12.8]
[11,"HECTORE EL FATHER","REGGAETON","DVD",20,20,0,3.2]
[12,"GUAYACAN","SALSA","DVD",20,25,5,4]
[13,"MADONNA VIDEOGRAFIA","POP","DVD",80,80,0,12.8]
[14,"MADONNA VS MICHAEL JACKSON","POP","DVD",20,20,0,3.2]
[15,"39 EXITOS ROMANTICOS EN INGLES","INGLES","DVD",20,25,5,4]
[16,"ADOLESCENTES","SALSA","DVD",88,90,2,14.4]
[17,"MAGO DE OZ","ROCK","DVD",20,20,0,3.2]
[18,"SODA ESTEREO","ROCK EN ESPAÑOL","DVD",20,20,0,3.2]
[19,"FRANKIE RUIZ","SALSA","DVD",80,80,0,12.8]
[20,"U2","ROCK","DVD",20,20,0,3.2]
[21,"WOODSTOCK 99","ROCK","DVD",20,20,0,3.2]
[22,"MICHAEL JACKSON GHOST Y CAPITAN EO","POP","DVD",20,20,0,3.2]
[23,"TITO PUENTE","SALSA","DVD",67,80,13,12.8]
[24,"KPAZ","DANCE","DVD",20,20,0,3.2]
[25,"SHAKIRA TOUR 2007 FIJACION ORAL","POP","DVD",80,80,0,12.8]
[26,"LAS MEJORES BALADAS DE HOY","BALADAS","DVD",20,25,5,4]
[27,"ALEJANDRA GUZMAN EXITOS","POP","DVD",20,20,0,3.2]
[28,"HOMBRES G","POP","DVD",20,25,5,4]
[29,"REYLI","POP","DVD",20,20,0,3.2]
[30,"LA LEY","ROCK","DVD",54,54,0,8.64]
[31,"WINSIN Y YANDEL","REGGAETON","DVD",80,80,0,12.8]
[32,"CRISTINA AGUILERA EN VIVO 2007","POP","DVD",20,20,0,3.2]
[33,"michael jackson live in bucarest","POP","DVD",20,20,0,3.2]
[34,"papitour -miguel bose","POP","DVD",20,25,5,4]
[35,"YURI","POP","DVD",20,20,0,3.2]
[36,"GILBERTO SANTA ROSA ","SALSA","DVD",20,20,0,3.2]
[37,"HECTOR EN FATHER EN VIVO","REGGAETON","DVD",20,25,5,4]
[38,"WISIN & YANDEL EN VIVO","REGGAETON","DVD",20,20,0,3.2]
[39,"ZION -WELCOME A MI WORD","CONCIERTO EN VIVO ","DVD",45,45,0,7.2]
[40,"EV ENANITOS VERDES EN VIVO","ROCK EN ESPAÑOL","DVD",20,20,0,3.2]
[41,"LA LEY UNPLUGGED","ROCK EN ESPAÑOL","DVD",20,20,0,3.2]
[42,"MAGO DE OZ EN LAS VENTAS","ROCK","DVD",23,25,2,4]
[43,"MAGO DE OZ EN CONCIERTO","ROCK","DVD",80,80,0,12.8]
[44,"SODA ESTEREO ULTIMO CONCIERTO","ROCK EN ESPAÑOL","DVD",20,20,0,3.2]
[45,"SHAKIRA UNPLUGGED","POP","DVD",20,25,5,4]
[46,"MADONNA CIAO ITALIA","POP","DVD",20,20,0,3.2]
[47,"MADONNA EN VIVO 1990","POP","DVD",20,25,5,4]
[48,"QUIET RIOT LIVE IN JAPON","ROCK","DVD",20,20,0,3.2]
[49,"KUMBIA KINGS LIVE","CUMBIA","DVD",20,20,0,3.2]
[50,"MANA UNPLUGGED","POP","DVD",43,43,0,6.88]
[51,"KALIMBA TRIBUTO A LOS GRNADES","BALADAS","DVD",70,70,0,11.200000000000001]
[52,"JOSE JOSE EXITOS 1","BALADAS","DVD",20,20,0,3.2]
[53,"JOSE JOSE EXITOS 3","BALADAS","DVD",80,80,0,12.8]
[54,"ROCIO DURCAL ","BALADAS","DVD",20,20,0,3.2]
[55,"RICKY MARTIN UNPLUGGED","POP","DVD",20,20,0,3.2]
[56,"FRANCO DE VITA  ","BALADAS","DVD",65,65,0,10.4]
[57,"MAELO RUIZ","SALSA","DVD",20,20,0,3.2]
[58,"HECTOR LAVOE EN VIVO","SALSA","DVD",5,5,0,0.8]
[59,"RUBEN BLADES EN VIVO","SALSA","DVD",20,20,0,3.2]
[60,"REGGAETON","150 EXITOS","MP3",15,15,0,2.4]
[61,"REGGAETON VOL 2","150 EXITOS","MP3",15,15,0,2.4]
[62,"REGGAETON VOL 3","150 EXITOS","MP3",5,5,0,0.8]
[63,"REGGAETON VOL 4","150 EXITOS","MP3",15,15,0,2.4]
[64,"REGGAETON VOL 5","150 EXITOS","MP3",80,80,0,12.8]
[65,"luis miguel ","TODOS LOS ROMANCE ","MP3",15,15,0,2.4]
[66,"temas romanticosa en español","100 EXITOS","MP3",15,15,{"$f":"F67-E67","v":0},{"$f":"F67*K$1","v":2.4}]
[67,"temas romanticosa en español VOL 2","100 EXITOS","MP3",15,15,0,2.4]
[68,"sin bandera todos sus exitos","MP3","MP3",15,15,0,2.4]
[]
[]
[]
[null,"Total de DVD's",{"$f":"COUNTIF(D2:D69,\"DVD\")","v":58}]
[null,"Total de MP3's",{"$f":"COUNTIF(D2:D69,\"MP3\")","v":10}]

{"sheet":"Porcentajes","index":4,"n_rows":10,"n_cols":7,"rows_kept":10,"cut":false,"hidden":false,"merged":[[3,2,3,4]]}
[]
[]
[]
[null,null,0.3,null,null,0.7,1]
[null,"Alumno","Parcial 1","Parcial 2","Parcial 3","Examen Final","Promedio Final"]
[null,"CARACAS-MARTINEZ GUADALUPE\n",7,9,8,7,{"$f":"(C6+D6+E6)/3*$C$4+(F6)*$F$4","v":7.2999999999999989}]
[null,"CARDEÑA-TORAL JESSICA JOSELYN\n",5,8,5,5,{"$f":"(C7+D7+E7)/3*$C$4+(F7)*$F$4","v":5.3}]
[null,"CARRASCO-RAMOS ALBERTO\n",8,6,7,5,5.6]
[null,"CORPUS-GARCIA MARIELA\n",9,7,5,8,7.6999999999999993]
[null,"DOMINGUEZ-BAUTISTA JORGE ABRAHAM\n",10,5,10,9,8.8000000000000007]

{"sheet":"Rangos","index":5,"n_rows":19,"n_cols":9,"rows_kept":19,"cut":false,"hidden":false,"merged":[[1,0,2,8]]}
[]
[]
[]
["·  Venta total por trimestre",null,null,"* Venta Maxima por vendedor"]
["·  Venta total por vendedor",null,null,"* Venta Minima por vendedor"]
["·  Promedio de venta por vendedor ",null,null,"* Venta Maxima por trimestre"]
["·  Promedio de venta por trimestre",null,null,"* Venta Minima por trimestre"]
["Rellene todas las celdas con las funciones correspondientes."]
[null,"Vendedor","Trimestre1","Trimestre2","Trimestre3","Vtas.Tot.Vendedor","Prom.Vtas.Vendedor","Vta.Max.Vend.","Vta.Min.Vend."]
[null,"Hugo",1340,865,5464,{"$f":"SUM(C10:E10)","v":7669},{"$f":"AVERAGE(C10:E10)","v":2556.3333333333335},{"$f":"MAX(C10:E10)","v":5464},{"$f":"MIN(C10:E10)","v":865}]
[null,"Paco",4234,35,775,{"$f":"SUM(C11:E11)","v":5044},{"$f":"AVERAGE(C11:E11)","v":1681.3333333333333},{"$f":"MAX(C11:E11)","v":4234},{"$f":"MIN(C11:E11)","v":35}]
[null,"Luis",6560,756,54,7370,2456.6666666666665,6560,54]
[null,"Carlos",3423,1546,765,5734,1911.3333333333333,3423,765]
[]
[]
["Vtas.Tot.Trim.",null,{"$f":"SUM(Trimestre1)","v":15557},{"$f":"SUM(Trimestre2)","v":3202},{"$f":"SUM(Trimestre3)","v":7058}]
["Prom. Vtas.Trim.",null,{"$f":"AVERAGE(Trimestre1)","v":3889.25},{"$f":"AVERAGE(Trimestre2)","v":800.5},{"$f":"AVERAGE(Trimestre3)","v":1764.5}]
["Vta.Max.Trim.",null,{"$f":"MAX(Trimestre1)","v":6560},{"$f":"MAX(Trimestre2)","v":1546},{"$f":"MAX(Trimestre3)","v":5464}]
["Vta.Min.Trim.",null,{"$f":"MIN(Trimestre1)","v":1340},{"$f":"MIN(Trimestre2)","v":35},{"$f":"MIN(Trimestre3)","v":54}]

{"sheet":"Grafos","index":6,"n_rows":9,"n_cols":4,"rows_kept":9,"cut":false,"hidden":false,"merged":[[0,2,0,4]]}
[null,null,"VENTAS MENSUALES (EN MILES)"]
[]
["MES","PRODUCTO 1","PRODUCTO 2","TOTAL VENTAS"]
["ENERO",100,40,{"$f":"SUM(B4:C4)","v":140}]
["FEBRERO",150,25,175]
["MARZO",240,41,281]
["ABRIL",95,52,147]
["MAYO",75,167,242]
["JUNIO",175,286,461]

{"sheet":"Macros","index":7,"n_rows":30,"n_cols":14,"rows_kept":30,"cut":false,"hidden":false,"merged":[]}
[]
[]
[]
[]
[]
[]
[null,null,null,null,null,null,null,null,null,null,null,null,"Pesos Mexicanos","Importe en letra"]
[null,null,null,null,null,null,null,null,null,null,null,null,{"$f":"RANDBETWEEN(8,8000)","v":7078},{"$f":"PesosMX(M8)","v":"SON: ( SIETE MIL SETENTA Y OCHO PESOS 00/100 m.n.)"}]
[null,null,null,null,null,null,null,null,null,null,null,null,{"$f":"RANDBETWEEN(8,8000)","v":3724},{"$f":"PesosMX(M9)","v":"SON: ( TRES MIL SETECIENTOS VEINTICUATRO PESOS 00/100 m.n.)"}]
[null,null,null,null,null,null,null,null,null,null,null,null,{"$f":"RANDBETWEEN(8,8000)","v":7827},{"$f":"PesosMX(M10)","v":"SON: ( SIETE MIL OCHOCIENTOS VEINTISIETE PESOS 00/100 m.n.)"}]
[null,null,null,null,null,null,null,null,null,null,null,null,{"$f":"RANDBETWEEN(8,8000)","v":5408},{"$f":"PesosMX(M11)","v":"SON: ( CINCO MIL CUATROCIENTOS OCHO PESOS 00/100 m.n.)"}]
[null,null,null,null,null,null,null,null,null,null,null,null,{"$f":"RANDBETWEEN(8,8000)","v":3695},{"$f":"PesosMX(M12)","v":"SON: ( TRES MIL SEISCIENTOS NOVENTA Y CINCO PESOS 00/100 m.n.)"}]
[null,null,null,null,null,null,null,null,null,null,null,null,{"$f":"RANDBETWEEN(8,8000)","v":2246},{"$f":"PesosMX(M13)","v":"SON: ( DOS MIL DOSCIENTOS CUARENTA Y SEIS PESOS 00/100 m.n.)"}]
[null,null,null,null,null,null,null,null,null,null,null,null,{"$f":"RANDBETWEEN(8,8000)","v":2495},{"$f":"PesosMX(M14)","v":"SON: ( DOS MIL CUATROCIENTOS NOVENTA Y CINCO PESOS 00/100 m.n.)"}]
[null,null,null,null,null,null,null,null,null,null,null,null,{"$f":"RANDBETWEEN(8,8000)","v":4356},{"$f":"PesosMX(M15)","v":"SON: ( CUATRO MIL TRESCIENTOS CINCUENTA Y SEIS PESOS 00/100 m.n.)"}]
[null,null,null,null,null,null,null,null,null,null,null,null,{"$f":"RANDBETWEEN(8,8000)","v":2861},{"$f":"PesosMX(M16)","v":"SON: ( DOS MIL OCHOCIENTOS SESENTA Y UN PESOS 00/100 m.n.)"}]
[null,null,null,null,null,null,null,null,null,null,null,null,{"$f":"RANDBETWEEN(8,8000)","v":5684},{"$f":"PesosMX(M17)","v":"SON: ( CINCO MIL SEISCIENTOS OCHENTA Y CUATRO PESOS 00/100 m.n.)"}]
[null,null,null,null,null,null,null,null,null,null,null,null,{"$f":"RANDBETWEEN(8,8000)","v":2392},{"$f":"PesosMX(M18)","v":"SON: ( DOS MIL TRESCIENTOS NOVENTA Y DOS PESOS 00/100 m.n.)"}]
[null,null,null,null,null,null,null,null,null,null,null,null,{"$f":"RANDBETWEEN(8,8000)","v":5079},{"$f":"PesosMX(M19)","v":"SON: ( CINCO MIL SETENTA Y NUEVE PESOS 00/100 m.n.)"}]
[null,null,null,null,null,null,null,null,null,null,null,null,{"$f":"RANDBETWEEN(8,8000)","v":6160},{"$f":"PesosMX(M20)","v":"SON: ( SEIS MIL CIENTO SESENTA PESOS 00/100 m.n.)"}]
[null,null,null,null,null,null,null,null,null,null,null,null,{"$f":"RANDBETWEEN(8,8000)","v":6738},{"$f":"PesosMX(M21)","v":"SON: ( SEIS MIL SETECIENTOS TREINTA Y OCHO PESOS 00/100 m.n.)"}]
[null,null,null,null,null,null,null,null,null,null,null,null,{"$f":"RANDBETWEEN(8,8000)","v":1556},{"$f":"PesosMX(M22)","v":"SON: ( UN MIL QUINIENTOS CINCUENTA Y SEIS PESOS 00/100 m.n.)"}]
[null,null,null,null,null,null,null,null,null,null,null,null,{"$f":"RANDBETWEEN(8,8000)","v":3320},{"$f":"PesosMX(M23)","v":"SON: ( TRES MIL TRESCIENTOS VEINTE PESOS 00/100 m.n.)"}]
[null,null,null,null,null,null,null,null,null,null,null,null,{"$f":"RANDBETWEEN(8,8000)","v":5066},{"$f":"PesosMX(M24)","v":"SON: ( CINCO MIL SESENTA Y SEIS PESOS 00/100 m.n.)"}]
[null,null,null,null,null,null,null,null,null,null,null,null,{"$f":"RANDBETWEEN(8,8000)","v":2471},{"$f":"PesosMX(M25)","v":"SON: ( DOS MIL CUATROCIENTOS SETENTA Y UN PESOS 00/100 m.n.)"}]
[null,null,null,null,null,null,null,null,null,null,null,null,{"$f":"RANDBETWEEN(8,8000)","v":2314},{"$f":"PesosMX(M26)","v":"SON: ( DOS MIL TRESCIENTOS CATORCE PESOS 00/100 m.n.)"}]
[null,null,null,null,null,null,null,null,null,null,null,null,{"$f":"RANDBETWEEN(8,8000)","v":7232},{"$f":"PesosMX(M27)","v":"SON: ( SIETE MIL DOSCIENTOS TREINTA Y DOS PESOS 00/100 m.n.)"}]
[null,null,null,null,null,null,null,null,null,null,null,null,{"$f":"RANDBETWEEN(8,8000)","v":4630},{"$f":"PesosMX(M28)","v":"SON: ( CUATRO MIL SEISCIENTOS TREINTA PESOS 00/100 m.n.)"}]
[null,null,null,null,null,null,null,null,null,null,null,null,{"$f":"RANDBETWEEN(8,8000)","v":282},{"$f":"PesosMX(M29)","v":"SON: ( DOSCIENTOS OCHENTA Y DOS PESOS 00/100 m.n.)"}]
[null,null,null,null,null,null,null,null,null,null,null,null,{"$f":"RANDBETWEEN(8,8000)","v":6404},{"$f":"PesosMX(M30)","v":"SON: ( SEIS MIL CUATROCIENTOS CUATRO PESOS 00/100 m.n.)"}]